bitfinex/quotes_SOLUSD_20230104
["timestamp","ask_amount","ask_price","bid_price","bid_amount"]
[1672833671958,54.89,13.677,13.662,54.95]
[1672833672384,64.03009303,13.677,13.661,165.124]
[1672833672601,107.81015477,13.677,13.661,165.124]
[1672833673213,20.0,13.676,13.661,165.124]
[1672833673428,54.89,13.675,13.661,165.124]
[1672833673637,20.0,13.674,13.661,165.124]
[1672833674905,29.14009303,13.674,13.661,165.124]
[1672833675123,54.9,13.673,13.661,110.174]
[1672833675520,9.14009303,13.672,13.661,110.174]
[1672833676472,30.4,13.67,13.644,55.02]
[1672833676779,38.12333079,13.665,13.644,102.558]
[1672833676994,38.12333079,13.665,13.645,156.6618]
[1672833677206,143.65258567,13.664,13.646,55.01]
[1672833677518,96.48831428,13.663,13.646,55.01]
[1672833677729,106.83591646,13.663,13.646,55.01]
[1672833677934,58.36498349,13.662,13.646,55.01]
[1672833681513,55.86498349,13.662,13.646,55.01]
[1672833683616,10.34760218,13.661,13.646,55.01]
[1672833684042,58.14831682,13.66,13.646,55.01]
[1672833684262,58.14831682,13.66,13.658,9.647e-05]
[1672833684454,30.34760218,13.659,13.658,9.647e-05]
[1672833684886,88.495919,13.659,13.658,9.647e-05]
[1672833685731,78.14831682,13.659,13.658,9.647e-05]
[1672833685944,181.23141237,13.659,13.658,9.647e-05]
[1672833686135,236.19141237,13.659,13.658,9.647e-05]
[1672833686575,225.84381019,13.659,13.658,9.647e-05]
[1672833688257,236.19141237,13.659,13.658,9.647e-05]
[1672833692338,181.23141237,13.659,13.658,9.647e-05]
[1672833693392,236.19141237,13.659,13.658,9.647e-05]
[1672833695495,236.19141237,13.659,13.645,156.6618]
[1672833695496,0.05990353,13.654,13.645,156.6618]
[1672833695720,6.03,13.65,13.645,156.6618]
[1672833695930,6.03,13.65,13.64,79.4828077]
[1672833696662,73.11125016,13.649,13.64,79.4828077]
[1672833696980,53.11125016,13.648,13.64,79.4828077]
[1672833697192,20.0,13.647,13.64,79.4828077]
[1672833697401,30.34760218,13.647,13.64,79.4828077]
[1672833697810,10.34760218,13.646,13.64,79.4828077]
[1672833698021,20.0,13.645,13.64,79.4828077]
[1672833699595,20.0,13.647,13.64,79.4828077]
[1672833700023,73.11125016,13.647,13.64,79.4828077]
[1672833701379,406.92050353,13.654,13.64,79.4828077]
[1672833701721,263.75990353,13.654,13.641,55.03]
[1672833701934,263.75990353,13.654,13.641,215.05]
[1672833705180,263.75990353,13.654,13.641,236.8311836]
[1672833707492,263.75990353,13.654,13.641,215.05]
[1672833708234,263.75990353,13.654,13.641,236.8311836]
[1672833709689,263.75990353,13.654,13.641,215.05]
[1672833711371,263.75990353,13.654,13.641,236.8311836]
[1672833712740,263.75990353,13.654,13.641,215.05]
[1672833713912,274.10750571,13.654,13.641,215.05]
[1672833714124,329.08750571,13.654,13.641,215.05]
[1672833714317,318.73990353,13.654,13.641,215.05]
[1672833715369,312.64606702,13.654,13.641,215.05]
[1672833717065,54.98,13.653,13.641,215.05]
[1672833717594,54.98,13.653,13.641,199.55]
[1672833718306,312.64606702,13.654,13.641,199.55]
[1672833718513,6.08,13.65,13.641,47.358]
[1672833718724,75.0,13.649,13.641,47.358]
[1672833718934,134.23376567,13.649,13.64,79.4828077]
[1672833719148,59.23376567,13.648,13.64,79.4828077]
[1672833719360,75.0,13.647,13.64,79.4828077]
[1672833720939,85.34760218,13.647,13.64,79.4828077]
[1672833721152,134.23376567,13.647,13.64,79.4828077]
[1672833721368,49.05887915,13.646,13.64,79.4828077]
[1672833721573,75.01,13.645,13.64,79.4828077]
[1672833721787,137.62376567,13.645,13.64,79.4828077]
[1672833721997,10.34760218,13.644,13.64,79.4828077]
[1672833722213,176.33504264,13.645,13.64,79.4828077]
[1672833722847,121.32504264,13.645,13.64,79.4828077]
[1672833723255,131.67264482,13.645,13.64,79.4828077]
[1672833723467,107.28616349,13.644,13.64,79.4828077]
[1672833724014,52.26616349,13.643,13.64,79.4828077]
[1672833724613,111.67264482,13.643,13.64,79.4828077]
[1672833725043,52.26616349,13.642,13.64,79.4828077]
[1672833725459,10.34760218,13.641,13.64,79.4828077]
[1672833727152,52.26616349,13.641,13.64,79.4828077]
[1672833734817,20.0,13.645,13.64,79.4828077]
[1672833735021,20.0,13.649,13.64,79.4828077]
[1672833735230,52.50821249,13.648,13.64,79.4828077]
[1672833735545,20.0,13.647,13.64,79.4828077]
[1672833736279,72.50821249,13.647,13.64,79.4828077]
[1672833736495,121.21046547,13.647,13.64,79.4828077]
[1672833738627,10.34760218,13.646,13.64,79.4828077]
[1672833738823,20.0,13.645,13.64,79.4828077]
[1672833739040,72.50821249,13.645,13.64,79.4828077]
[1672833742389,20.0,13.645,13.64,79.4828077]
[1672833742602,20.0,13.648,13.64,79.4828077]
[1672833742805,55.0,13.649,13.64,79.4828077]
[1672833743021,23.7218,13.653,13.641,55.03]
[1672833743231,118.2066,13.659,13.641,55.03]
[1672833743441,22.6916,13.658,13.641,170.2656]
[1672833743653,54.96,13.657,13.641,170.2656]
[1672833743869,77.6516,13.658,13.641,192.0467836]
[1672833744175,77.6516,13.658,13.642,24.3649]
[1672833744391,77.6516,13.658,13.643,55.02]
[1672833744608,77.6516,13.658,13.641,138.774]
[1672833744609,6.03,13.65,13.64,79.4828077]
[1672833744844,75.0,13.649,13.64,79.4828077]
[1672833746191,85.34760218,13.649,13.64,79.4828077]
[1672833750000,85.34760218,13.649,13.635,55.05]
[1672833750388,85.34760218,13.649,13.634,204.1846077]
[1672833755249,75.0,13.649,13.634,204.1846077]
[1672833757238,30.37,13.65,13.634,204.1846077]
[1672833757434,6.1,13.65,13.635,20.0]
[1672833757651,6.1,13.65,13.636,55.05]
[1672833757981,6.1,13.65,13.637,24.3534]
[1672833758171,6.1,13.65,13.638,55.04]
[1672833760390,6.12,13.65,13.638,55.04]
[1672833764188,263.7,13.653,13.639,21.7811836]
[1672833764397,263.7,13.653,13.64,55.03]
[1672833764592,263.7,13.653,13.641,24.1645]
[1672833764801,311.19369029,13.653,13.642,55.02]
[1672833765217,311.19369029,13.653,13.641,24.1645]
[1672833765645,6.11,13.65,13.641,24.1645]
[1672833766706,53.60369029,13.65,13.641,24.1645]
[1672833767561,6.11,13.65,13.641,24.1645]
[1672833769243,53.60369029,13.65,13.641,24.1645]
[1672833769638,55.0,13.649,13.641,24.1645]
[1672833770074,47.49369029,13.648,13.641,24.1645]
[1672833771350,47.49369029,13.648,13.636,55.05]
[1672833771547,47.49369029,13.648,13.619,197.8330684]
[1672833771548,85.3568575,13.647,13.634,102.3629]
[1672833771756,75.0,13.647,13.634,102.3629]
[1672833773644,122.49369029,13.647,13.634,102.3629]
[1672833775865,166.21434731,13.647,13.634,47.3029]
[1672833777528,10.3568575,13.646,13.634,47.3029]
[1672833777739,75.01,13.645,13.634,47.3029]
[1672833778074,132.86054779,13.645,13.634,47.3029]
[1672833779017,6.09,13.64,13.634,47.3029]
[1672833783432,97.71556458,13.639,13.622,55.11]
[1672833783625,75.04,13.638,13.623,47.8945]
[1672833783831,57.41399819,13.64,13.634,21.7811836]
[1672833784050,57.41399819,13.64,13.624,55.1]
[1672833784265,57.41399819,13.64,13.625,41.7811836]
[1672833784484,57.41399819,13.64,13.626,55.09]
[1672833784682,6.06,13.64,13.627,23.3811]
[1672833784892,6.06,13.64,13.628,55.08]
[1672833785111,64.74599819,13.64,13.628,77.5917]
[1672833785308,113.19198181,13.64,13.628,77.5917]
[1672833786594,137.63198181,13.64,13.628,77.5917]
[1672833786804,137.67198181,13.64,13.628,77.5917]
[1672833787199,182.34718944,13.64,13.628,77.5917]
[1672833787422,55.04,13.639,13.627,23.3811]
[1672833787642,20.0,13.638,13.627,23.3811]
[1672833787839,171.80718944,13.638,13.627,23.3811]
[1672833788056,151.80718944,13.637,13.627,23.3811]
[1672833788262,20.0,13.636,13.627,23.3811]
[1672833788472,132.42384848,13.636,13.61,13.7543082]
[1672833788673,132.42384848,13.636,13.611,46.7234]
[1672833788674,38.12333079,13.626,13.611,46.7234]
[1672833788883,167.5058293,13.63,13.611,46.7234]
[1672833788884,93.21333079,13.625,13.611,46.7234]
[1672833789113,271.25321506,13.625,13.611,46.7234]
[1672833789319,10.37136188,13.624,13.611,46.7234]
[1672833789529,55.1,13.623,13.611,46.7234]
[1672833789736,193.75752784,13.623,13.611,46.7234]
[1672833790061,235.84401284,13.622,13.611,46.7234]
[1672833790278,55.11,13.621,13.611,46.7234]
[1672833790464,193.76752784,13.621,13.611,46.7234]
[1672833790794,55.11,13.622,13.611,46.7234]
[1672833791003,55.09,13.626,13.612,55.15]
[1672833791218,20.0,13.625,13.611,101.8734]
[1672833791415,55.1,13.624,13.611,101.8734]
[1672833792481,30.37136188,13.625,13.611,101.8734]
[1672833792686,55.1,13.624,13.611,101.8734]
[1672833793213,65.47136188,13.624,13.611,46.7234]
[1672833793407,65.47136188,13.624,13.611,101.8734]
[1672833793828,121.71159988,13.624,13.611,101.8734]
[1672833794878,121.71159988,13.624,13.611,46.7234]
[1672833795304,169.92548433,13.624,13.612,174.2974]
[1672833795522,42.54361869,13.623,13.612,119.1474]
[1672833795730,55.11,13.622,13.612,119.1474]
[1672833795949,111.350238,13.622,13.612,119.1474]
[1672833796149,55.11,13.622,13.612,119.1474]
[1672833796359,55.1,13.624,13.612,119.1474]
[1672833796785,56.240238,13.621,13.612,119.1474]
[1672833797105,111.350238,13.621,13.612,119.1474]
[1672833797311,171.89112016,13.621,13.612,119.1474]
[1672833797509,116.78112016,13.621,13.612,119.1474]
[1672833799509,55.11,13.622,13.612,119.1474]
[1672833800773,65.51034525,13.622,13.612,119.1474]
[1672833801000,10.40034525,13.622,13.612,119.1474]
[1672833802155,66.64058325,13.622,13.612,119.1474]
[1672833802470,55.11,13.621,13.612,119.1474]
[1672833802995,65.51034525,13.621,13.612,119.1474]
[1672833803309,56.240238,13.622,13.612,119.1474]
[1672833804992,65.51483875,13.624,13.612,119.1474]
[1672833806147,121.75507675,13.624,13.612,119.1474]
[1672833806355,34.41669722,13.623,13.612,119.1474]
[1672833806781,121.47674815,13.622,13.619,82.4022684]
[1672833806965,20.0,13.621,13.61,13.7543082]
[1672833807176,177.84,13.62,13.61,13.7543082]
[1672833807395,20.0,13.619,13.61,13.7543082]
[1672833807607,55.12,13.618,13.61,13.7543082]
[1672833807811,20.0,13.617,13.61,13.7543082]
[1672833808024,55.13,13.616,13.61,13.7543082]
[1672833808235,111.370238,13.616,13.61,13.7543082]
[1672833808441,125.79739231,13.616,13.61,13.7543082]
[1672833808691,66.36674815,13.615,13.61,13.7543082]
[1672833809215,121.50674815,13.614,13.61,13.7543082]
[1672833809530,56.240238,13.613,13.61,13.7543082]
[1672833810352,20.0,13.617,13.61,13.7543082]
[1672833810564,20.0,13.619,13.61,13.7543082]
[1672833810999,55.12,13.618,13.61,13.7543082]
[1672833811312,76.240238,13.619,13.61,8.7543082]
[1672833811313,34.41669722,13.619,13.61,8.7543082]
[1672833811526,24.62,13.62,13.61,8.7543082]
[1672833812582,24.62,13.62,13.611,55.15]
[1672833813931,24.62,13.62,13.61,8.7543082]
[1672833815285,263.7,13.626,13.611,55.15]
[1672833815502,20.0,13.625,13.611,169.5263]
[1672833815712,20.0,13.625,13.611,159.5263]
[1672833818141,24.54,13.62,13.611,159.5263]
[1672833818560,75.09,13.625,13.611,159.5263]
[1672833818784,20.0,13.625,13.611,159.5263]
[1672833819098,20.0,13.629,13.611,159.5263]
[1672833819312,55.08,13.628,13.612,47.1506]
[1672833819506,20.0,13.627,13.613,55.14]
[1672833819707,75.08,13.629,13.614,20.0]
[1672833819708,55.08,13.629,13.614,20.0]
[1672833819924,24.75,13.63,13.615,55.13]
[1672833820254,24.75,13.63,13.616,20.0]
[1672833820447,24.75,13.63,13.617,55.13]
[1672833825706,24.75,13.63,13.618,110.8501]
[1672833825917,24.75,13.63,13.619,55.12]
[1672833826135,24.75,13.63,13.616,24.2364]
[1672833826136,85.22100587,13.629,13.616,24.2364]
[1672833826338,126.48584112,13.629,13.616,24.2364]
[1672833826660,70.68188803,13.628,13.616,24.2364]
[1672833826859,75.08,13.627,13.616,24.2364]
[1672833832442,10.14100587,13.626,13.616,24.2364]
[1672833832756,75.09,13.625,13.616,24.2364]
[1672833833070,85.23100587,13.625,13.616,24.2364]
[1672833833282,30.14100587,13.625,13.616,24.2364]
[1672833833481,20.0,13.625,13.616,24.2364]
[1672833833693,20.0,13.626,13.616,24.2364]
[1672833834232,10.14100587,13.626,13.616,24.2364]
[1672833834441,75.09,13.625,13.616,24.2364]
[1672833835075,10.14100587,13.624,13.616,24.2364]
[1672833835800,20.0,13.625,13.616,24.2364]
[1672833836013,10.14100587,13.626,13.616,24.2364]
[1672833836226,30.14100587,13.625,13.616,24.2364]
[1672833837911,55.1,13.624,13.616,24.2364]
[1672833838319,10.14100587,13.623,13.616,24.2364]
[1672833839060,20.0,13.625,13.616,24.2364]
[1672833839274,10.14100587,13.626,13.616,24.2364]
[1672833839485,20.0,13.625,13.616,24.2364]
[1672833841060,30.14100587,13.625,13.616,24.2364]
[1672833841462,55.1,13.624,13.616,24.2364]
[1672833842735,115.64088216,13.624,13.616,24.2364]
[1672833842955,60.54088216,13.624,13.616,24.2364]
[1672833849143,24.42,13.63,13.616,24.2364]
[1672833849351,60.85503079,13.638,13.617,55.13]
[1672833849670,48.27883096,13.639,13.617,68.68771]
[1672833849875,65.19550017,13.639,13.618,60.53861]
[1672833850106,79.65,13.64,13.619,75.12]
[1672833850301,79.65,13.64,13.62,143.3347]
[1672833850513,24.62,13.64,13.621,55.11]
[1672833850724,24.62,13.64,13.621,75.11]
[1672833851565,34.77550017,13.64,13.621,75.11]
[1672833851886,24.62,13.64,13.621,75.11]
[1672833852420,10.15550017,13.643,13.622,13.55273]
[1672833852617,55.0,13.647,13.623,75.1]
[1672833852827,10.15550017,13.645,13.623,99.197]
[1672833853038,55.02,13.644,13.624,47.914]
[1672833853249,55.02,13.644,13.625,55.09]
[1672833853575,55.02,13.644,13.626,20.0]
[1672833853789,55.0,13.647,13.627,55.08]
[1672833854099,20.0,13.646,13.627,169.5472]
[1672833854315,55.01,13.645,13.627,169.5472]
[1672833854499,20.0,13.646,13.628,47.1135]
[1672833854710,20.0,13.646,13.629,55.08]
[1672833854920,20.0,13.647,13.629,55.08]
[1672833855146,55.01,13.646,13.629,55.08]
[1672833856095,122.87,13.65,13.63,33.54478]
[1672833856096,79.41,13.65,13.63,33.54478]
[1672833856310,121.1192,13.66,13.631,55.07]
[1672833856311,38.12333079,13.653,13.631,55.07]
[1672833856499,54.98,13.652,13.632,22.738]
[1672833856709,54.98,13.652,13.633,75.06]
[1672833856918,24.58,13.65,13.633,75.06]
[1672833857139,24.58,13.65,13.634,136.5513]
[1672833857350,24.58,13.65,13.635,55.05]
[1672833857558,24.58,13.65,13.636,20.0]
[1672833857766,24.58,13.65,13.637,55.04]
[1672833859881,133.34550017,13.65,13.637,55.04]
[1672833862629,123.19,13.65,13.637,55.04]
[1672833863991,24.71,13.65,13.637,55.04]
[1672833865553,24.71,13.65,13.637,77.8005]
[1672833868404,123.03,13.65,13.637,77.8005]
[1672833869344,24.71,13.65,13.637,77.8005]
[1672833875318,54.97,13.655,13.637,77.8005]
[1672833875535,122.309538,13.656,13.637,77.8005]
[1672833878476,20.0,13.655,13.637,77.8005]
[1672833882472,30.04419406,13.655,13.637,77.8005]
[1672833884059,24.54,13.65,13.637,77.8005]
[1672833885939,24.54,13.65,13.634,136.5513]
[1672833885940,104.55522602,13.649,13.634,136.5513]
[1672833886154,24.58,13.64,13.634,136.5513]
[1672833886897,55.0,13.647,13.634,136.5513]
[1672833887097,55.0,13.649,13.635,55.05]
[1672833887304,123.03,13.65,13.635,78.3662]
[1672833887870,24.71,13.65,13.635,78.3662]
[1672833888079,6.12,13.65,13.636,20.0]
[1672833888276,6.12,13.65,13.637,55.04]
[1672833888489,6.12,13.65,13.638,23.3162]
[1672833888709,65.17775875,13.655,13.639,55.04]
[1672833888913,20.0,13.654,13.639,78.0384]
[1672833889535,20.0,13.655,13.64,119.0002]
[1672833889854,20.0,13.655,13.641,55.03]
[1672833890371,20.0,13.655,13.641,78.4846]
[1672833891018,79.76298477,13.655,13.641,78.4846]
[1672833891427,121.03013542,13.655,13.641,78.4846]
[1672833891865,6.1,13.65,13.641,78.4846]
[1672833901120,69.55522602,13.655,13.641,78.4846]
[1672833902061,6.1,13.65,13.641,78.4846]
[1672833905934,44.22333079,13.65,13.641,78.4846]
[1672833906577,6.1,13.65,13.641,78.4846]
[1672833915822,20.0,13.655,13.641,78.4846]
[1672833916238,58.12333079,13.655,13.641,78.4846]
[1672833916883,20.0,13.655,13.641,78.4846]
[1672833917529,58.12333079,13.655,13.641,78.4846]
[1672833918989,6.1,13.65,13.641,78.4846]
[1672833919306,58.12333079,13.655,13.641,78.4846]
[1672833923181,10.20775875,13.654,13.641,78.4846]
[1672833926462,72.43383079,13.655,13.641,78.4846]
[1672833927403,34.3105,13.655,13.641,78.4846]
[1672833929399,14.3105,13.655,13.641,78.4846]
[1672833929612,14.3105,13.655,13.642,20.0]
[1672833929807,14.3105,13.655,13.643,55.02]
[1672833930015,14.3105,13.655,13.644,24.9512]
[1672833930227,14.3105,13.655,13.645,55.01]
[1672833930553,14.3105,13.655,13.646,20.0]
[1672833930771,14.3105,13.655,13.647,55.0]
[1672833938448,14.3105,13.655,13.647,76.7811836]
[1672833939386,14.3105,13.655,13.647,55.0]
[1672833947597,64.58704178,13.657,13.648,41.7811836]
[1672833947813,64.58704178,13.657,13.649,55.0]
[1672833948123,64.58704178,13.657,13.65,20.0]
[1672833948310,15.36704178,13.657,13.651,54.99]
[1672833948521,15.36704178,13.657,13.652,20.0]
[1672833948731,15.36704178,13.657,13.653,54.98]
[1672833948948,15.36704178,13.657,13.654,20.0]
[1672833949158,54.92,13.669,13.655,54.97]
[1672833949373,28.7192,13.67,13.656,20.0]
[1672833949594,28.7192,13.67,13.657,54.96]
[1672833949789,6.18,13.67,13.658,24.6907]
[1672833950003,6.18,13.67,13.659,54.96]
[1672833953059,30.66,13.67,13.659,54.96]
[1672833953280,30.67,13.67,13.659,54.96]
[1672833954627,30.67,13.67,13.658,24.6907]
[1672833954628,85.58,13.67,13.658,24.6907]
[1672833955587,30.67,13.67,13.658,24.6907]
[1672833955809,85.58,13.67,13.658,24.6907]
[1672833960327,85.58,13.67,13.658,336.6907]
[1672833963378,85.58,13.67,13.659,21.7811836]
[1672833963596,30.67,13.67,13.659,21.7811836]
[1672833963788,6.11,13.67,13.659,21.7811836]
[1672833964207,6.11,13.67,13.658,24.6907]
[1672833964837,6.11,13.67,13.658,46.4718836]
[1672833965264,244.76597839,13.671,13.658,46.4718836]
[1672833965582,244.76597839,13.671,13.659,20.0]
[1672833965991,244.76597839,13.671,13.66,21.7811836]
[1672833966199,244.76597839,13.671,13.661,74.95]
[1672833966641,244.76597839,13.671,13.662,21.7811836]
[1672833966849,244.76597839,13.671,13.663,74.94]
[1672833967465,6.09,13.67,13.663,74.94]
[1672833967674,6.09,13.67,13.663,20.0]
[1672833970324,6.09,13.67,13.663,41.7811836]
[1672833970513,259.05977839,13.671,13.663,41.7811836]
[1672833971053,6.12,13.67,13.663,41.7811836]
[1672833971267,6.12,13.67,13.663,20.0]
[1672833972951,6.12,13.67,13.663,74.94]
[1672833973155,6.12,13.67,13.663,20.0]
[1672833973892,6.12,13.67,13.662,54.94]
[1672833974106,6.12,13.67,13.657,114.2211]
[1672833974107,30.49,13.67,13.663,21.7811836]
[1672833974307,159.0302766,13.669,13.657,114.2211]
[1672833974518,54.92,13.668,13.657,114.2211]
[1672833974714,112.99028519,13.668,13.657,114.2211]
[1672833974926,58.07028519,13.668,13.657,114.2211]
[1672833975575,58.07028519,13.668,13.658,20.0]
[1672833975787,58.07028519,13.668,13.657,114.2211]
[1672833977048,107.9113028,13.668,13.657,114.2211]
[1672833977263,107.9113028,13.668,13.658,20.0]
[1672833977460,58.07028519,13.667,13.658,20.0]
[1672833977882,107.9113028,13.667,13.658,20.0]
[1672833978093,159.0302766,13.667,13.658,20.0]
[1672833978313,58.07028519,13.666,13.658,20.0]
[1672833978514,113.00028519,13.666,13.658,20.0]
[1672833978718,100.95999141,13.665,13.658,20.0]
[1672833978929,159.0302766,13.665,13.658,20.0]
[1672833979267,107.9113028,13.664,13.658,20.0]
[1672833979791,107.9113028,13.663,13.658,20.0]
[1672833980200,107.9113028,13.662,13.658,20.0]
[1672833980735,58.07028519,13.661,13.658,20.0]
[1672833983890,51.1189738,13.664,13.658,20.0]
[1672833984502,109.18925899,13.664,13.658,20.0]
[1672833985888,58.07028519,13.664,13.658,20.0]
[1672833991470,51.1189738,13.663,13.658,20.0]
[1672833991667,54.94,13.662,13.643,55.02]
[1672833991865,54.94,13.662,13.625,341.90619652]
[1672833991866,6.1,13.65,13.635,116.9015]
[1672833992194,54.96,13.659,13.636,55.05]
[1672833992408,21.14903013,13.652,13.636,55.05]
[1672833992604,28.69198748,13.652,13.636,55.05]
[1672833992816,58.07028519,13.655,13.636,55.05]
[1672833993148,58.07028519,13.655,13.637,47.2648]
[1672833993352,58.07028519,13.655,13.638,55.04]
[1672833993574,58.07028519,13.655,13.639,20.0]
[1672833993755,54.96,13.658,13.639,20.0]
[1672833993756,54.96,13.658,13.64,78.2108]
[1672833993971,6.14,13.66,13.641,33.53386]
[1672833993972,54.96,13.659,13.641,33.53386]
[1672833994188,6.14,13.66,13.642,68.55286]
[1672833994399,54.93,13.666,13.642,68.55286]
[1672833994400,54.93,13.666,13.643,60.79667]
[1672833994615,54.92,13.669,13.644,33.53088]
[1672833994934,54.92,13.669,13.645,13.52989]
[1672833995133,54.92,13.669,13.646,75.01]
[1672833995342,54.92,13.669,13.646,99.803]
[1672833996086,54.92,13.669,13.647,115.3263]
[1672833996299,54.92,13.669,13.648,75.0]
[1672833996532,54.92,13.669,13.649,48.7249]
[1672833996725,54.92,13.669,13.65,74.99]
[1672834002502,54.92,13.669,13.651,13.52394]
[1672834002717,118.9835,13.67,13.651,13.52394]
[1672834002718,118.9835,13.67,13.652,74.98]
[1672834002928,118.9835,13.67,13.652,99.555]
[1672834003760,118.9835,13.67,13.653,113.7272]
[1672834003971,118.9835,13.67,13.654,20.0]
[1672834004182,118.9835,13.67,13.655,24.575]
[1672834004392,118.9835,13.67,13.656,74.97]
[1672834008936,244.76597839,13.671,13.656,74.97]
[1672834016606,244.76597839,13.671,13.656,88.48899]
[1672834021962,244.76597839,13.671,13.656,400.48899]
[1672834026176,244.76597839,13.671,13.657,13.518]
[1672834026384,244.76597839,13.671,13.658,74.96]
[1672834026593,244.76597839,13.671,13.659,37.33512]
[1672834026796,244.76597839,13.671,13.66,54.95]
[1672834026995,244.76597839,13.671,13.661,20.0]
[1672834029210,244.76597839,13.671,13.661,332.0]
[1672834029651,54.88,13.677,13.661,332.0]
[1672834029855,54.88,13.677,13.662,23.7386]
[1672834030068,54.88,13.677,13.663,20.0]
[1672834030277,54.88,13.677,13.663,128.4497]
[1672834037748,24.8895,13.678,13.663,128.4497]
[1672834037749,79.7695,13.678,13.663,128.4497]
[1672834040563,30.45,13.67,13.659,13.51602]
[1672834040776,30.45,13.67,13.652,156.928]
[1672834040777,30.52,13.67,13.652,156.928]
[1672834040995,23.0462,13.669,13.652,156.928]
[1672834041204,77.9662,13.669,13.653,54.98]
[1672834042159,23.0462,13.669,13.653,54.98]
[1672834042372,23.0462,13.669,13.654,20.0]
[1672834042561,23.0462,13.669,13.655,54.97]
[1672834042984,23.0462,13.669,13.653,54.98]
[1672834044044,23.0462,13.669,13.654,20.0]
[1672834044257,23.0462,13.669,13.655,54.97]
[1672834044570,23.0462,13.669,13.656,20.0]
[1672834045093,23.0462,13.669,13.654,20.0]
[1672834045349,23.0462,13.669,13.655,54.97]
[1672834045653,23.0462,13.669,13.656,20.0]
[1672834046184,23.0462,13.669,13.654,20.0]
[1672834046368,23.0462,13.669,13.655,54.97]
[1672834046577,23.0462,13.669,13.656,20.0]
[1672834047096,23.0462,13.669,13.654,20.0]
[1672834047342,77.9662,13.669,13.654,20.0]
[1672834047750,77.9662,13.669,13.653,20.0]
[1672834056043,121.19095589,13.669,13.653,20.0]
[1672834057235,171.11197442,13.669,13.653,20.0]
[1672834057866,215.41721489,13.669,13.653,20.0]
[1672834058180,225.06471798,13.669,13.653,20.0]
[1672834061960,225.06471798,13.669,13.646,55.01]
[1672834062168,225.06471798,13.669,13.647,20.0]
[1672834062169,6.05,13.66,13.647,20.0]
[1672834062485,6.05,13.66,13.643,75.02]
[1672834062680,79.0156,13.659,13.643,75.02]
[1672834062891,79.0156,13.659,13.643,55.02]
[1672834064047,79.0156,13.659,13.644,20.0]
[1672834064469,24.0556,13.659,13.644,20.0]
[1672834064676,54.93,13.665,13.645,55.01]
[1672834064881,139.0234,13.666,13.646,33.5289]
[1672834065097,139.0234,13.666,13.647,68.5279]
[1672834065429,139.0234,13.666,13.648,196.31421]
[1672834065640,139.0234,13.666,13.649,55.0]
[1672834065851,139.0234,13.666,13.65,20.0]
[1672834066058,139.0234,13.666,13.651,78.6129]
[1672834066272,139.0234,13.666,13.652,20.0]
[1672834066461,139.0234,13.666,13.653,139.1644]
[1672834066676,139.0234,13.666,13.654,20.0]
[1672834066886,78.7641,13.667,13.654,43.6229]
[1672834067214,54.92,13.667,13.654,43.6229]
[1672834071090,79.8133,13.668,13.654,43.6229]
[1672834071827,79.8289,13.669,13.654,98.6029]
[1672834073734,79.8289,13.669,13.654,43.6229]
[1672834076343,79.8289,13.669,13.655,54.97]
[1672834076561,79.8289,13.669,13.656,20.0]
[1672834076771,54.92,13.669,13.656,20.0]